bitfinex/quotes_ETHUSD_20220227
["timestamp","ask_amount","ask_price","bid_price","bid_amount"]
[1645963993389,3.5,2819.2,2819.1,0.00617622]
[1645963993690,3.7659019,2819.2,2819.1,0.00617622]
[1645963993945,3.7659019,2819.2,2818.4,0.00200512]
[1645963994135,4.5,2819.2,2818.4,0.00200512]
[1645963994340,11.71345453,2819.1,2819.0,7.635e-05]
[1645963994538,11.71345453,2819.1,2817.1,0.1418]
[1645963994539,18.31,2818.9,2817.1,0.1418]
[1645963994743,0.88819,2817.9,2816.7,1.1732]
[1645963994943,15.21345453,2817.8,2816.7,1.1732]
[1645963995136,15.24783848,2817.8,2816.7,1.1732]
[1645963995338,0.1419,2817.7,2816.7,1.1732]
[1645963995637,3.29148044,2817.8,2817.6,1.19972484]
[1645963995840,0.3,2817.8,2817.0,7.36]
[1645963996037,0.3488,2817.6,2817.0,7.36]
[1645963996237,0.6488,2817.6,2817.0,7.36]
[1645963996439,0.25,2817.4,2816.2,7.43441385]
[1645963996637,0.25,2817.4,2816.3,0.3539]
[1645963996840,1.7766517,2817.1,2816.5,1.43452431]
[1645963997040,1.98048218,2817.1,2816.5,1.43452431]
[1645963997242,2.28048218,2817.1,2816.5,1.43452431]
[1645963997688,1.09213048,2817.1,2816.5,1.43452431]
[1645963997896,0.3,2817.2,2816.7,0.00616409]
[1645963998094,0.21115367,2817.2,2816.7,0.00616409]
[1645963998294,0.25,2817.4,2816.7,0.00616409]
[1645963998295,0.55,2817.4,2816.7,0.00616409]
[1645963998496,2.51074122,2817.4,2816.7,0.00616409]
[1645963998697,3.51074122,2817.4,2816.6,0.00199996]
[1645963998899,3.81074122,2817.4,2816.2,0.00199996]
[1645963999095,0.3488,2817.3,2816.9,0.00616376]
[1645963999296,2.12534,2817.3,2816.1,7.91102244]
[1645963999496,2.12534,2817.3,2817.0,1.04772999]
[1645963999697,2.12534,2817.3,2816.1,7.91102244]
[1645963999698,3.01363,2817.3,2816.1,7.55712244]
[1645963999897,0.88831,2817.0,2816.1,1.17942244]
[1645964000102,1.18831,2817.0,2815.9,1.1914]
[1645964000299,0.25,2816.9,2815.9,1.5453]
[1645964000801,0.25,2816.9,2816.7,1.34805117]
[1645964001096,3.75,2816.9,2816.7,1.34805117]
[1645964001299,3.75,2816.9,2816.0,7.36]
[1645964001943,3.75,2816.9,2815.8,1.1964305]
[1645964001944,0.88842,2816.6,2815.8,0.0177305]
[1645964002341,0.88842,2816.6,2816.1,1.3429653]
[1645964002342,1.18842,2816.6,2816.1,1.3429653]
[1645964002543,1.18842,2816.6,2815.8,0.0177305]
[1645964002748,1.18842,2816.6,2816.1,0.00616488]
[1645964002749,1.50388571,2816.6,2816.1,0.00616488]
[1645964002947,1.50388571,2816.6,2815.5,0.0180287]
[1645964002948,3.5,2816.5,2815.1,7.36]
[1645964003149,0.88875,2816.2,2814.9,6.0705307]
[1645964003350,3.77762,2816.0,2814.9,6.0705307]
[1645964003550,3.77762,2816.0,2815.3,1.21624133]
[1645964003551,0.1419,2815.9,2815.3,1.21624133]
[1645964003747,0.1419,2815.9,2814.9,6.0705307]
[1645964004351,2.50238725,2816.0,2814.9,13.7844307]
[1645964004352,0.50238725,2816.0,2814.9,13.7844307]
[1645964004546,0.43276892,2816.2,2814.9,13.7844307]
[1645964004748,0.25,2816.2,2816.0,1.12709585]
[1645964005582,0.3488,2816.1,2816.0,0.64066788]
[1645964005783,0.3488,2816.1,2815.1,6.0367]
[1645964006184,0.3488,2816.1,2815.0,1.1548]
[1645964006384,1.03049,2816.0,2815.0,1.1548]
[1645964006584,4.53049,2816.0,2815.1,0.00198694]
[1645964006785,0.88882,2815.9,2815.1,0.00198694]
[1645964006987,1.9195943,2815.8,2815.1,0.00198694]
[1645964007186,2.2195943,2815.8,2815.1,0.00198694]
[1645964007387,2.2195943,2815.8,2815.4,0.0061473]
[1645964007388,0.00614647,2815.7,2815.4,0.0061473]
[1645964007587,1.78386647,2815.7,2815.4,0.0061473]
[1645964008191,1.73386647,2815.7,2815.4,0.0061473]
[1645964008389,1.73386647,2815.7,2815.1,0.00198694]
[1645964008590,0.3488,2815.6,2815.4,0.00614724]
[1645964008793,0.6488,2815.6,2815.4,0.00614724]
[1645964009037,1.35398982,2815.6,2815.4,0.00614724]
[1645964009238,1.65398982,2815.6,2815.4,1.20348056]
[1645964009440,1.4488,2815.6,2815.4,1.20348056]
[1645964009639,1.4488,2815.6,2815.4,1.19733332]
[1645964010039,0.9488,2815.6,2815.1,0.00198694]
[1645964010243,1.63877,2815.5,2814.9,6.07251764]
[1645964010440,1.81345898,2815.5,2814.9,6.0705307]
[1645964010643,1.81345898,2815.5,2814.9,6.0205307]
[1645964011141,1.81345898,2815.5,2814.9,2.97900715]
[1645964011746,0.3488,2815.4,2814.9,2.97900715]
[1645964012146,0.3488,2815.4,2815.0,3.5]
[1645964012349,0.3488,2815.4,2815.1,1.29339994]
[1645964013192,0.3488,2815.4,2815.1,1.28725224]
[1645964013590,0.3488,2815.4,2815.1,1.29339987]
[1645964013988,3.75,2815.5,2815.3,3.8539]
[1645964013989,0.0988,2815.5,2815.3,3.8539]
[1645964014190,0.00614603,2815.8,2815.5,0.3539]
[1645964014389,0.8,2816.2,2815.5,0.3539]
[1645964014789,0.00614616,2815.8,2815.5,3.8539]
[1645964014990,0.00614616,2815.8,2815.6,1.11720923]
[1645964015695,0.5,2816.2,2815.7,3.8539]
[1645964015894,0.00614643,2815.8,2815.7,3.8539]
[1645964016092,4.643e-05,2815.8,2815.7,5.3539]
[1645964016290,4.643e-05,2815.8,2815.7,8.8539]
[1645964016729,0.4112253,2817.1,2815.7,8.8539]
[1645964016931,0.3919,2817.1,2815.8,0.00198648]
[1645964017130,0.00215205,2815.9,2815.8,0.00198648]
[1645964017329,0.00215205,2815.9,2815.8,3.8539]
[1645964017529,0.00215205,2815.9,2815.8,1.63657442]
[1645964017733,0.00215205,2815.9,2815.8,1.28267442]
[1645964017933,1.10027103,2817.0,2815.8,1.28267442]
[1645964018134,1.10027103,2817.0,2815.9,0.00198648]
[1645964018342,0.00215209,2816.0,2815.9,0.00198648]
[1645964018635,0.00215209,2816.0,2815.8,1.28267442]
[1645964018834,0.00215209,2816.0,2815.8,1.63657442]
[1645964019036,0.00215209,2816.0,2815.9,3.8539]
[1645964019234,0.02464119,2816.2,2815.9,0.3539]
[1645964019435,0.00215209,2816.0,2815.9,0.3539]
[1645964019634,0.00215209,2816.0,2815.9,3.8539]
[1645964020299,0.25,2817.0,2816.1,0.3539]
[1645964020499,0.25,2817.0,2816.2,3.50198648]
[1645964020906,0.25,2817.0,2816.0,3.50408648]
[1645964021197,0.25,2817.0,2816.1,0.00198648]
[1645964022197,0.25,2817.0,2816.0,0.0021]
[1645964022397,0.25,2817.0,2816.6,1.28583985]
[1645964024038,0.25,2817.0,2816.1,0.00198648]
[1645964024337,0.25,2817.0,2816.3,0.02608992]
[1645964024338,0.10573086,2816.9,2816.3,0.02608992]
[1645964024538,0.10573086,2816.9,2816.4,0.01481884]
[1645964025137,1.03037,2816.8,2816.4,0.01481884]
[1645964025338,1.77699,2816.7,2816.4,0.01481884]
[1645964025537,0.1419,2816.6,2816.3,0.02067402]
[1645964026135,1.52187803,2816.8,2816.3,0.02067402]
[1645964026136,0.1419,2816.7,2816.3,0.02067402]
[1645964026338,0.51573284,2816.8,2816.3,0.02067402]
[1645964026736,0.1419,2816.7,2816.3,0.02067402]
[1645964026936,0.00577205,2816.6,2816.3,0.02067402]
[1645964027138,0.1419,2816.5,2816.3,0.02067402]
[1645964027904,0.00577211,2816.5,2816.3,0.02067402]
[1645964028101,0.00577211,2816.5,2816.3,0.01557402]
[1645964028902,0.1419,2816.4,2816.3,0.01557402]
[1645964029106,0.14767211,2816.5,2816.3,1.901e-05]
[1645964029302,2.0,2816.4,2816.3,1.901e-05]
[1645964029503,2.1419,2816.4,2816.3,1.901e-05]
[1645964029702,2.4419,2816.4,2816.2,0.02201371]
[1645964029904,0.1419,2816.3,2816.2,0.02201371]
[1645964030505,4.51122484,2816.4,2816.2,0.02201371]
[1645964031454,4.51702228,2816.4,2816.2,0.02201371]
[1645964031640,6.29421358,2816.4,2816.2,0.02201371]
[1645964031841,0.31225589,2816.3,2816.2,0.02201371]
[1645964032140,0.66621306,2816.3,2816.2,0.02201371]
[1645964032341,0.31225589,2816.3,2815.1,0.00198648]
[1645964032542,1.77746,2816.0,2815.1,0.00198648]
[1645964032746,2.32746,2816.0,2815.6,0.00579918]
[1645964032945,2.32746,2816.0,2815.0,0.02320154]
[1645964032946,2.42055,2816.0,2815.0,0.0109872]
[1645964033146,2.60804915,2816.0,2815.0,0.0109872]
[1645964033346,1.71931915,2816.0,2814.9,2.88999435]
[1645964033546,0.18008108,2815.9,2814.9,2.88999435]
[1645964034850,0.88875,2815.7,2814.9,2.88999435]
[1645964035046,0.88875,2815.7,2814.9,2.89333555]
[1645964035293,1.18875,2815.7,2814.9,2.89333555]
[1645964035491,3.14813576,2815.7,2814.9,2.89333555]
[1645964035995,1.16719452,2815.6,2814.2,1.1583]
[1645964036295,1.16719452,2815.6,2814.2,0.01336814]
[1645964036296,0.26255045,2815.2,2814.2,0.01336814]
[1645964036497,0.8891609,2814.6,2814.2,0.01336814]
[1645964036692,0.98711344,2814.5,2814.2,0.01336814]
[1645964036892,0.34927496,2814.4,2814.2,0.01336814]
[1645964037396,5.21395615,2814.4,2813.1,0.00198049]
[1645964037599,5.21395615,2814.4,2812.5,1.5226]
[1645964037600,0.25,2814.0,2812.5,1.12068049]
[1645964037802,0.88945,2813.7,2812.8,1.06519354]
[1645964038000,0.88945,2813.7,2812.8,1.05519354]
[1645964038199,0.3,2813.7,2812.2,5.21210078]
[1645964038398,0.3,2813.7,2812.3,1.13320755]
[1645964038399,0.25,2813.5,2812.3,1.13320755]
[1645964038599,3.75,2813.5,2812.3,1.13320755]
[1645964038800,3.75,2813.5,2813.1,0.00339762]
[1645964039049,0.25,2813.5,2813.1,0.00339762]
[1645964039642,0.25,2813.5,2812.8,7.36]
[1645964039845,0.25,2813.5,2813.2,0.00339756]
[1645964040847,0.25,2813.5,2812.6,7.36]
[1645964041246,0.25,2813.5,2813.2,0.00589009]
[1645964042046,0.25,2813.5,2812.8,0.0235639]
[1645964042249,0.25,2813.5,2813.2,0.00588393]
[1645964043394,0.25,2813.5,2813.1,1.26815683]
[1645964043795,0.25,2813.5,2813.2,0.00588393]
[1645964044394,2.94810453,2813.3,2812.8,0.00197475]
[1645964044593,2.94810453,2813.3,2812.7,0.00466252]
[1645964044594,2.05861453,2813.3,2812.7,0.00466252]
[1645964044795,0.05861453,2813.3,2813.2,0.00588393]
[1645964045596,0.05861453,2813.3,2813.2,3.5]
[1645964045797,0.05891384,2813.4,2813.3,0.03081964]
[1645964047141,3.55891384,2813.4,2813.3,0.03081964]
[1645964049351,3.58336851,2813.4,2813.3,0.03081964]
[1645964049546,3.62762872,2813.4,2813.3,0.03081964]
[1645964051191,3.62762872,2813.4,2812.4,0.00197475]
[1645964051393,0.88959,2813.1,2812.4,0.00197475]
[1645964051595,0.1421,2813.0,2812.4,0.00197475]
[1645964051897,0.25,2812.9,2812.1,0.00197475]
[1645964052592,0.25,2812.9,2812.4,1.38737142]
[1645964053197,0.25,2812.9,2812.4,1.39352403]
[1645964054049,0.25,2812.9,2812.5,3.8539]
[1645964054249,0.25,2812.9,2812.5,0.36005248]
[1645964054454,0.25,2812.9,2812.5,0.00615248]
[1645964054850,0.25,2812.9,2812.5,3.50615248]
[1645964055048,3.62597756,2813.4,2812.8,0.3539]
[1645964055250,3.62597756,2813.4,2813.0,0.3539]
[1645964055448,3.62597756,2813.4,2813.1,0.3539]
[1645964055849,3.62597756,2813.4,2813.2,1.3092618]
[1645964056751,3.62597756,2813.4,2813.3,3.5]
[1645964057151,3.62597756,2813.4,2813.3,3.8539]
[1645964057686,0.5,2813.7,2813.5,0.3539]
[1645964057888,0.5,2813.7,2813.2,1.31541337]
[1645964058189,0.5,2813.7,2813.2,1.67128812]
[1645964058388,0.5,2813.7,2813.2,1.66931337]
[1645964058789,0.5,2813.7,2813.4,0.3539]
[1645964058991,0.30833723,2814.8,2813.6,5.3539]
[1645964058992,0.1421,2814.8,2813.6,5.3539]
[1645964059192,1.15984399,2815.6,2814.0,0.3539]
[1645964059193,0.0061475,2815.1,2814.0,0.3539]
[1645964059391,0.0061475,2815.1,2814.2,0.3539]
[1645964059596,0.2561475,2815.1,2814.2,0.3539]
[1645964060092,0.2561475,2815.1,2815.0,1.03500952]
[1645964060093,0.25,2815.1,2815.0,1.03500952]
[1645964060295,0.25248492,2815.1,2815.0,1.03500952]
[1645964061096,5.5,2816.1,2815.2,0.3539]
[1645964061097,2.0,2816.1,2815.2,0.3539]
[1645964061300,0.3539,2817.0,2815.2,0.3539]
[1645964061301,0.66468051,2817.2,2815.9,5.0]
[1645964061572,0.66468051,2817.2,2815.6,0.01238679]
[1645964061573,0.34690107,2817.1,2816.0,3.8539]
[1645964061769,0.66468051,2817.4,2815.2,2.12992]
[1645964061770,0.34690107,2817.0,2815.7,0.1418]
[1645964061966,0.34690107,2816.9,2815.7,0.1418]
[1645964062172,0.34690107,2816.8,2815.7,0.1418]
[1645964062369,0.43997107,2816.7,2815.3,3.5]
[1645964062568,0.34690107,2816.6,2815.3,3.5]
[1645964062771,0.0931,2816.5,2815.3,3.5]
[1645964062973,0.34690107,2816.4,2815.3,3.8539]
[1645964063173,0.34690107,2816.4,2815.8,1.2723525]
[1645964063372,0.8884,2816.8,2815.8,1.2723525]
[1645964063373,0.34690107,2816.3,2815.8,1.2723525]
[1645964063575,0.34690107,2816.2,2815.8,1.2723525]
[1645964063773,0.3,2816.4,2815.8,1.2723525]
[1645964063973,0.00249609,2816.2,2815.8,1.2723525]
[1645964064787,0.00249609,2816.2,2815.9,0.3539]
[1645964064976,0.09321,2817.3,2815.9,0.3539]
[1645964065188,0.00615061,2816.1,2815.9,0.3539]
[1645964065388,5.061e-05,2816.1,2815.9,0.3539]
[1645964065793,5.061e-05,2816.1,2816.0,19.36067553]
[1645964065990,0.09314,2817.6,2816.0,15.99553893]
[1645964066191,0.84422882,2817.5,2816.4,0.18553893]
[1645964066393,0.34422882,2817.4,2817.2,1.26881606]
[1645964066693,0.34422882,2817.4,2816.5,0.3539]
[1645964066891,0.34422882,2817.4,2816.1,0.88784]
[1645964067491,0.34422882,2817.4,2816.3,5.0]
[1645964067693,0.34422882,2817.4,2816.6,1.0641755]
[1645964067895,0.34422882,2817.4,2816.3,4.95]
[1645964068597,0.05,2817.9,2816.6,4.95]
[1645964068797,0.00249422,2817.0,2816.6,4.95]
[1645964069042,0.00249422,2817.0,2816.7,1.10666606]
[1645964069641,0.05,2817.9,2816.7,1.10666606]
[1645964069847,0.34433658,2817.8,2816.6,4.95]
[1645964070043,0.34433658,2817.8,2816.3,7.8078]
[1645964070044,0.0061495,2817.0,2816.3,7.8078]
[1645964070542,0.0061495,2817.0,2816.7,4.95]
[1645964070742,0.0061495,2817.0,2816.4,10.81]
[1645964070942,0.05,2818.1,2816.4,10.81]
[1645964071143,0.05,2818.1,2816.5,15.76]
[1645964071144,0.1061495,2817.0,2816.5,15.76]
[1645964071342,0.1061495,2817.0,2816.5,10.81]
[1645964071744,0.1061495,2817.0,2816.7,10.81]
[1645964072048,0.1061495,2817.0,2816.6,6.19229793]
[1645964072049,0.1,2817.0,2816.6,6.69229793]
[1645964072244,0.09161,2818.3,2816.9,4.95]
[1645964072245,0.14161,2818.3,2816.9,4.95]
[1645964072550,0.0061495,2817.0,2816.7,7.66981761]
[1645964072801,0.0061495,2817.0,2816.8,7.1002]
[1645964072999,4.95e-05,2817.0,2816.9,15.76]
[1645964073200,4.95e-05,2817.0,2816.9,22.86]
[1645964073401,0.34402407,2818.2,2816.9,23.03723987]
[1645964073600,0.05,2818.3,2817.0,4.95]
[1645964073802,0.34375554,2818.2,2817.1,1.0]
[1645964074201,0.34375554,2818.2,2817.6,1.08450382]
[1645964074601,0.34375554,2818.2,2816.9,12.05]
[1645964074801,0.34375554,2818.2,2816.9,7.1]
[1645964075002,0.05,2818.2,2816.9,7.26215536]
[1645964075204,0.05,2818.2,2816.9,7.1]
[1645964075602,0.34360996,2818.1,2817.3,1.11521505]
[1645964075804,0.05,2818.2,2817.3,1.11521505]
[1645964077237,0.00614833,2817.9,2817.3,1.11521505]
[1645964078144,0.05,2818.2,2817.3,1.11521505]
[1645964078345,0.00614853,2817.7,2817.3,1.11521505]
[1645964079150,0.00614853,2817.7,2817.0,11.1639]
[1645964079349,0.08390459,2818.1,2817.4,0.00958498]
[1645964079548,0.00614866,2817.6,2817.4,0.00958498]
[1645964080611,0.08390459,2818.1,2817.4,1.21878548]
[1645964080805,0.00614866,2817.6,2817.4,1.21878548]
[1645964081004,0.00614866,2817.6,2817.4,0.00958498]
[1645964081910,0.08390459,2818.1,2817.4,0.00958498]
[1645964082107,0.00614866,2817.6,2817.4,0.00958498]
[1645964082509,0.00614866,2817.6,2817.4,0.00488498]
[1645964082710,0.00614866,2817.6,2816.9,7.1]
[1645964082711,0.0035881,2817.3,2816.9,7.1]
[1645964083116,0.05,2817.0,2816.9,7.1]
[1645964083713,0.55,2817.0,2816.9,7.1]
[1645964084337,1.00023041,2817.0,2816.9,7.1]
[1645964084542,4.98163041,2817.0,2816.9,6.09310254]
[1645964084741,5.98163041,2817.0,2816.9,0.76183254]
[1645964084940,5.98163041,2817.0,2816.9,0.56965482]
[1645964085141,6.82244421,2817.0,2816.9,0.56965482]
[1645964085442,6.85663631,2817.0,2816.9,0.56965482]
[1645964085643,6.81582251,2817.0,2816.9,0.56965482]
[1645964085841,6.85665345,2817.0,2815.6,0.95777965]
[1645964086056,0.05,2815.9,2815.1,15.0239]
[1645964086239,0.05,2815.9,2815.1,9.3414]
[1645964086540,0.05,2815.7,2815.0,1.2171]
[1645964086740,0.05,2815.7,2814.6,6.3603]
[1645964087542,0.05,2815.3,2814.4,0.5]
[1645964088004,0.25,2815.3,2814.4,0.5]
[1645964088209,0.25,2815.3,2813.8,6.4902]
[1645964088210,0.25,2815.3,2813.9,0.00197475]
[1645964088403,0.25,2815.3,2814.1,1.41620144]
[1645964088404,0.05,2814.9,2814.1,1.41620144]
[1645964088603,0.05,2814.9,2814.2,0.00197475]
[1645964088805,0.05,2814.9,2814.1,1.41620144]
[1645964089403,0.05,2814.9,2814.1,1.28620144]
[1645964089603,0.05,2814.9,2813.9,0.00197475]
[1645964089804,0.939,2814.9,2813.9,0.00197475]
[1645964090003,0.939,2814.9,2813.7,0.00197475]
[1645964090604,4.14303,2815.3,2813.7,0.00197475]
[1645964090809,0.34303,2815.3,2814.2,1.07019145]
[1645964091004,0.05,2815.1,2814.2,1.0721662]
[1645964091202,0.05,2815.1,2813.7,0.00197475]
[1645964091459,0.05,2815.0,2813.7,0.00197475]
[1645964092245,0.05,2815.0,2814.1,1.35550442]
[1645964092445,0.05,2815.0,2814.2,0.00197475]
[1645964093250,0.05,2815.1,2814.2,0.00197475]
[1645964093650,0.05,2815.1,2814.1,1.35550442]
[1645964094050,0.05,2815.1,2814.5,0.00615385]
[1645964095053,0.05,2815.1,2814.3,0.00939533]
[1645964095292,0.05,2815.1,2814.7,0.00615365]
[1645964096100,0.05,2815.1,2814.3,0.00939533]
[1645964096496,0.05,2815.1,2814.8,0.00615352]
[1645964096698,0.09349949,2815.2,2814.8,0.00615352]
[1645964097295,0.05,2815.1,2814.3,0.03401311]
[1645964097495,0.05,2815.1,2814.3,0.00939533]
[1645964097697,0.05,2815.1,2814.9,0.00615339]
[1645964098605,0.05,2815.1,2814.3,0.00939533]
[1645964098803,0.09349949,2815.2,2814.9,0.00615339]
[1645964099047,0.05,2815.0,2814.9,0.00615339]
[1645964099244,0.05,2815.0,2814.9,0.01032993]
[1645964099245,0.14346598,2815.0,2814.9,0.01032993]
[1645964099846,0.14346598,2815.0,2814.9,7.654e-05]
[1645964100249,0.56430307,2815.0,2814.9,7.654e-05]
[1645964100650,0.23592598,2815.0,2814.9,7.654e-05]
[1645964100848,3.97184369,2815.0,2814.9,7.654e-05]
[1645964101255,5.36409369,2815.0,2814.9,7.654e-05]
[1645964101453,2.8,2814.9,2814.8,0.00544785]
[1645964101652,6.72051771,2814.9,2814.8,0.00544785]
[1645964101850,7.72051771,2814.9,2814.8,0.00544785]
[1645964102051,7.90059879,2814.9,2814.8,0.00544785]
[1645964102254,7.90059879,2814.9,2813.4,1.20770489]
[1645964102454,7.90059879,2814.9,2813.5,0.00197475]
[1645964102455,0.05,2814.4,2813.5,0.00197475]
[1645964102693,0.05,2814.3,2813.2,7.36]
[1645964102894,0.05,2814.3,2813.3,0.00197475]
[1645964103094,0.25,2814.2,2813.3,0.00197475]
[1645964103295,0.05,2813.9,2813.3,0.00197475]
[1645964103494,0.25,2814.2,2813.8,1.36880996]
[1645964103698,0.5,2814.8,2813.8,1.36880996]
[1645964103901,0.09346598,2815.0,2813.8,1.37078471]
[1645964103902,0.14346598,2815.0,2813.8,1.37078471]
[1645964104095,0.09346598,2815.0,2813.8,1.37078471]
[1645964104296,0.32886052,2814.9,2813.8,1.37078471]
[1645964104495,0.05,2814.7,2813.8,1.37078471]
[1645964104896,0.05,2814.7,2813.8,0.00197475]
[1645964105095,0.05,2814.5,2813.3,0.00197475]
[1645964105296,0.3,2814.5,2813.3,0.00197475]
[1645964105497,0.3,2814.5,2813.4,0.1421]
[1645964105698,0.05,2814.4,2813.5,0.00197475]
[1645964106097,0.05,2814.4,2813.4,1.3586236]
[1645964106297,0.05,2814.4,2813.8,0.00615482]
[1645964106558,0.05,2814.4,2813.8,0.00339558]
[1645964106754,0.05,2814.1,2813.8,0.00339558]
[1645964106955,0.05,2814.1,2813.3,0.00197475]
[1645964107962,0.05,2813.8,2813.3,0.00197475]
[1645964108261,4.48227,2814.4,2812.9,0.1421]
[1645964108262,0.05,2813.4,2813.1,0.00197475]
[1645964108463,0.05,2813.4,2812.8,0.00197475]
[1645964108863,0.25,2813.6,2812.6,0.1421]
[1645964108864,0.05,2812.9,2812.6,0.1421]
[1645964109068,0.99343867,2813.0,2812.0,13.4315]
[1645964109260,0.99343867,2813.0,2812.0,5.3009]
[1645964109261,0.05,2812.8,2812.0,5.3009]
[1645964109560,0.5,2812.7,2812.0,7.36]
[1645964109763,0.05,2812.8,2812.0,7.36]
[1645964109963,0.25,2812.9,2812.2,1.03162541]
[1645964110395,0.05,2812.8,2812.0,7.36]
[1645964110797,0.05,2812.8,2812.4,0.00364647]
[1645964111396,0.25,2812.9,2812.4,0.00364647]
[1645964111599,0.3,2812.9,2812.4,0.00364647]
[1645964111795,0.3,2812.9,2812.3,1.23309975]
[1645964112194,0.3,2812.9,2812.5,0.00615734]
[1645964112801,1.98687734,2813.0,2812.3,1.08925709]
[1645964113399,2.23687734,2813.0,2812.2,0.00196813]
[1645964114050,0.05,2812.8,2812.2,0.00196813]
[1645964114252,1.24343867,2813.0,2812.0,7.36]
[1645964114253,0.05,2812.9,2812.0,7.36]
[1645964114455,0.99343867,2812.4,2812.2,1.10400039]
[1645964115448,0.99343867,2812.4,2812.2,0.00448333]
[1645964115648,0.99343867,2812.4,2812.2,0.00812923]
[1645964116352,1.49343867,2812.4,2812.2,0.00812923]
[1645964116553,1.49343867,2812.4,2812.2,0.00448333]
[1645964116753,0.99343867,2812.4,2812.2,0.00448333]
[1645964116948,0.99343867,2812.4,2812.2,0.01035355]
[1645964117550,0.99343867,2812.4,2812.3,1.03933818]
[1645964119000,0.99343867,2812.4,2812.2,0.00448333]
[1645964119405,0.10310448,2812.3,2812.2,0.01035349]
[1645964119601,1.09654315,2812.3,2812.0,7.32689027]
[1645964119801,1.09654315,2812.3,2811.8,0.07358418]
[1645964119802,2.08998182,2812.3,2811.8,0.07358418]
[1645964120203,2.08998182,2812.3,2811.9,1.128795]
[1645964120403,2.08998182,2812.3,2812.0,3.8539]
[1645964120605,2.08998182,2812.3,2812.0,3.996]
[1645964121843,2.08998182,2812.3,2812.1,10.81]
[1645964122048,2.08998182,2812.3,2812.2,3.6421]
[1645964122644,2.08998182,2812.3,2812.2,3.996]
[1645964122848,2.08998182,2812.3,2812.2,3.5]
[1645964123048,2.08998182,2812.3,2812.1,0.50180942]
[1645964123253,0.3921,2813.6,2812.3,0.3539]
[1645964123451,0.00580567,2813.9,2813.5,1.41266741]
[1645964123849,0.05,2814.0,2813.5,1.41266741]
[1645964124050,0.05,2814.0,2813.1,7.36]
[1645964124250,0.00580697,2813.9,2813.1,7.36]
[1645964124454,0.05,2813.2,2813.0,0.00196813]
[1645964124667,0.1421,2813.1,2812.7,0.00196813]
[1645964124850,0.3921,2813.1,2812.5,7.36]
[1645964125052,0.25,2813.1,2812.8,1.43904312]
[1645964125308,0.3921,2813.1,2812.8,1.43904312]
[1645964125509,0.1421,2813.8,2812.9,3.8539]
[1645964125708,0.1421,2813.8,2812.9,3.50196813]
[1645964125907,0.00580612,2813.9,2812.9,3.50196813]
[1645964126309,0.05,2813.6,2813.4,1.03600696]
[1645964126507,0.05,2813.6,2812.9,0.00196813]
[1645964126709,0.05,2813.6,2812.7,3.50196813]
[1645964126907,0.05,2813.6,2812.7,0.14406813]
[1645964127510,0.05,2813.6,2812.7,0.00196813]
[1645964127709,0.05,2813.6,2812.9,1.33957513]
[1645964128111,0.05,2813.6,2812.7,0.00196813]
[1645964128412,0.05,2813.0,2812.7,0.00196813]
[1645964128614,0.05,2813.0,2812.6,1.217]
[1645964129446,0.05,2813.0,2812.8,1.29304011]
[1645964129849,0.1421,2813.6,2812.8,1.29304011]
[1645964130043,0.31949349,2813.5,2812.8,1.29304011]
[1645964130446,0.05,2813.2,2812.8,1.29304011]
[1645964131047,0.1421,2813.6,2812.8,1.29304011]
[1645964131346,0.31955915,2813.5,2812.8,1.29304011]
[1645964132147,0.33031829,2813.7,2812.8,1.29304011]
[1645964132350,0.33031829,2813.7,2812.8,0.00196813]
[1645964132693,0.31985658,2813.6,2812.8,0.00196813]
[1645964132897,0.33031829,2813.7,2812.8,11.16586813]
[1645964132898,0.08031829,2813.7,2812.8,11.16586813]
[1645964133098,0.08031829,2813.7,2813.0,0.3539]
[1645964133901,0.08031829,2813.7,2813.4,1.11593921]
[1645964134098,0.5,2813.6,2813.4,1.11593921]
[1645964134299,0.08602342,2813.9,2813.4,1.11593921]
[1645964134503,0.31999358,2813.8,2813.4,1.11593921]
[1645964135301,0.08602369,2813.9,2813.4,1.11593921]
[1645964135501,0.31986977,2813.8,2813.4,1.11593921]
[1645964136563,0.08602441,2813.9,2813.4,1.11593921]
[1645964136764,0.08602441,2813.9,2813.0,13.86987975]
[1645964136963,0.08602441,2813.9,2813.1,12.32840289]
[1645964137164,0.08021764,2813.9,2813.1,11.1639]
[1645964137570,0.08589414,2813.9,2813.1,0.3539]
[1645964137771,0.08589414,2813.9,2813.4,1.35442698]
[1645964138269,0.08021764,2813.9,2813.4,1.35442698]
[1645964138670,0.08589431,2813.9,2813.4,1.35442698]
[1645964139081,0.31994684,2813.8,2813.4,1.35442698]
[1645964139476,0.08061662,2813.7,2813.5,0.02017642]
[1645964140702,6.65e-06,2813.7,2813.6,1.52024378]
[1645964140900,6.65e-06,2813.7,2813.6,12.33024378]
[1645964141100,0.00581111,2813.9,2813.6,12.33024378]
[1645964141302,0.00581111,2813.9,2813.8,11.1639]
[1645964141500,0.00581111,2813.9,2813.8,12.33024378]
[1645964141901,0.05,2814.9,2813.8,13.66137315]
[1645964142103,0.05,2814.9,2813.9,10.81]
[1645964142104,0.0058111,2814.0,2813.9,10.81]
[1645964142501,0.0058111,2814.0,2813.9,11.97720733]
[1645964142706,0.0058111,2814.0,2813.9,1.16720733]
[1645964143213,1.05678051,2815.1,2813.9,1.52110733]
[1645964143407,8.39865589,2815.4,2814.1,0.3539]
[1645964143408,0.32037313,2815.0,2814.1,0.3539]
[1645964143610,0.32037313,2814.9,2814.3,0.3539]
[1645964143807,0.32037313,2814.8,2814.5,0.3539]
[1645964144051,3.06821207,2815.5,2814.7,10.81]
[1645964144249,0.32047424,2815.4,2815.1,1.36456303]
[1645964144649,0.32047424,2815.3,2815.1,1.36456303]
[1645964144849,0.32047424,2815.2,2815.1,1.36456303]
[1645964145049,0.32047424,2815.6,2815.1,1.36456303]
[1645964145452,0.5,2815.7,2815.1,1.36456303]
[1645964145850,0.00252066,2815.5,2815.1,1.36456303]
[1645964146053,0.00252066,2815.5,2815.2,10.81]
[1645964146452,0.00252066,2815.5,2815.3,0.3539]
[1645964146453,2.066e-05,2815.5,2815.3,0.3539]
[1645964146652,0.66468051,2816.1,2815.2,9.5622216]